fUSD/lending_fUSD_20250428
["ID","MTS","AMOUNT","RATE_DAILY","PERIOD"]
[359262823,1745876233313,-2278.76317119,0.0002018,2]
[359262824,1745876310027,350.507,0.00037613,49]
[359262825,1745876336332,4500.0,0.00038356,30]
[359262826,1745876408074,7159.808434,7.945e-05,2]
[359262827,1745876468406,174.38,0.00017539,2]
[359262828,1745876763880,713.61,0.00038356,120]
[359262829,1745876830171,-171.49759904,0.00020129,2]
[359262830,1745876836099,-78.50240096,0.00020129,2]
[359262831,1745876836121,-162.02547363,0.00020179,2]
[359263068,1745877039999,-398.901083,0.00019688,2]
[359263070,1745877040009,-618.86,0.00019788,2]
[359263072,1745877040019,-1200.0,0.00020179,2]
[359263074,1745877040028,-300.0,0.00020179,2]
[359263076,1745877040037,-250.0,0.0002018,2]
[359263078,1745877040048,-200.0,0.0002018,2]
[359263080,1745877040058,-75161.03973125,0.0002018,2]
[359263082,1745877040067,-200.0,0.00020532,2]
[359263084,1745877040076,-221.23682882,0.000206,2]
[359263086,1745877040086,-21916.79394934,0.000207,2]
[359263088,1745877040095,-350.0,0.00021,2]
[359263090,1745877040104,-1154.31924919,0.00021,2]
[359263092,1745877040114,-190.51466512,0.00021,2]
[359263094,1745877040123,-10000.0,0.00021642,2]
[359263096,1745877040132,-250.0,0.00021657,2]
[359263097,1745877040142,-200.0,0.00021657,2]
[359263099,1745877040151,-284.86,0.00021678,2]
[359263101,1745877040161,-7312.64452359,0.000217,2]
[359263103,1745877040171,-1000.0,0.0002177,2]
[359263105,1745877040180,-5434.0,0.000218,2]
[359263107,1745877040189,-440.83,0.00021819,2]
[359263109,1745877040198,-378.75,0.00021897,2]
[359263111,1745877040208,-1889.33176385,0.000219,3]
[359263113,1745877040217,-420.0,0.00021969,2]
[359263115,1745877040226,-247.68257165,0.00022,2]
[359263117,1745877040235,-652.32437631,0.00022,7]
[359263119,1745877040245,-500.0,0.00022,2]
[359263121,1745877040254,-151.0,0.00022,2]
[359263122,1745877040265,-250.0,0.00022008,7]
[359263124,1745877040274,-618.86,0.00022052,2]
[359263126,1745877040283,-1680.0,0.00022074,2]
[359263128,1745877040293,-200.0,0.00022087,2]
[359263130,1745877040303,-232.11588523,0.0002211,2]
[359263132,1745877040312,-250.0,0.00022197,2]
[359263134,1745877040322,-200.0,0.00022197,2]
[359263136,1745877040331,-34255.45073933,0.000225,2]
[359263138,1745877040340,-670.16229447,0.0002261,2]
[359263140,1745877040350,-505.26318178,0.0002271,2]
[359263142,1745877040360,-500.0,0.00022727,2]
[359263144,1745877040369,-500.0,0.00022727,2]
[359263146,1745877040379,-630.07846656,0.00022727,2]
[359263147,1745877040388,-1889.3317638,0.00022728,4]
[359263149,1745877040398,-400.0,0.00023,2]
[359263151,1745877040407,-1502.83112344,0.00023,2]
[359263153,1745877040418,-50378.5399523,0.000232,2]
[359263155,1745877040429,-500.0,0.0002326,2]
[359263157,1745877040439,-500.0,0.000233,2]
[359263159,1745877040448,-529.09,0.00023368,2]
[359263161,1745877040457,-150.99,0.00023368,2]
[359263163,1745877040466,-500.0,0.0002345,2]
[359263165,1745877040475,-200.0,0.000235,2]
[359263167,1745877040484,-1889.3317638,0.00023555,4]
[359263169,1745877040493,-784.75,0.00023836,2]
[359263170,1745877040503,-287.0,0.00023917,2]
[359263172,1745877040512,-985.26817707,0.00024,2]
[359263174,1745877040521,-8532.94106916,0.00024,14]
[359263176,1745877040532,-64825.05126127,0.00024,2]
[359263178,1745877040543,-284.32856189,0.00024116,2]
[359263180,1745877040552,-2189.0,0.00024147,2]
[359263182,1745877040561,-6722.5,0.00024174,2]
[359263184,1745877040571,-618.86,0.00024316,2]
[359263186,1745877040580,-1889.3317638,0.00024383,5]
[359263188,1745877040590,-284.86,0.00024387,2]
[359263190,1745877040600,-670.16229447,0.0002447,2]
[359263192,1745877040609,-1000.0,0.00024492,2]
[359263194,1745877040618,-1000.0,0.00024658,2]
[359263196,1745877040628,-450.0,0.00025,2]
[359263198,1745877040637,-1889.3317638,0.0002521,5]
[359263199,1745877040647,-1889.3317638,0.00026038,6]
[359263201,1745877040656,-670.16229447,0.0002633,2]
[359263203,1745877040665,-14471.87180844,0.000264,2]
[359263205,1745877040675,-36205.4548986,0.00026514,2]
[359263207,1745877040684,-2226.36936775,0.00026524,2]
[359263209,1745877040693,-284.32856184,0.00026528,2]
[359263211,1745877040703,-618.86,0.0002658,2]
[359263213,1745877040712,-1889.3317638,0.00026866,7]
[359263215,1745877040726,-500.0,0.00027,2]
[359263217,1745877040735,-1000.0,0.00027213,2]
[359263219,1745877040745,-151.0,0.0002727,2]
[359263221,1745877040755,-207.4,0.0002727,2]
[359263222,1745877040764,-500.0,0.00027397,2]
[359263223,1745877040773,-549.61280084,0.00027397,2]
[359263224,1745877040782,-500.0,0.00027397,2]
[359263225,1745877040791,-300.0,0.00027397,2]
[359263226,1745877040800,-150.0,0.00027397,2]
[359263227,1745877040809,-1000.0,0.00027397,2]
[359263228,1745877040818,-242.641,0.00027512,2]
[359263229,1745877040829,-1889.3317638,0.00027693,7]
[359263230,1745877040838,-2226.36936766,0.00027949,2]
[359263231,1745877040850,-150.0,0.00028118,2]
[359263232,1745877040859,-670.16229447,0.00028191,2]
[359263233,1745877040868,-1889.3317638,0.00028521,8]
[359263234,1745877040877,-215.0738,0.00028639,2]
[359263235,1745877040886,-200.0,0.00028735,2]
[359263236,1745877040895,-154.29,0.00028735,2]
[359263237,1745877040904,-150.0,0.00028839,2]
[359263238,1745877040913,-618.86,0.00028843,2]
[359263239,1745877040922,-521.52548977,0.00028929,5]
[359263240,1745877040931,-284.32856184,0.0002894,2]
[359263241,1745877040941,-550.0,0.00029,2]
[359263242,1745877040950,-1889.3317638,0.00029348,8]
[359263243,1745877040959,-2226.36936766,0.00029375,2]
[359263244,1745877040969,-150.0,0.0002956,2]
[359263245,1745877040978,-1000.0,0.00029934,2]
[359263246,1745877040987,-4000.0,0.0003,2]
[359263247,1745877040996,-213.0,0.0003,2]
[359263249,1745877041006,-223.0315306,0.00030008,2]
[359263250,1745877041015,-670.16229447,0.00030051,2]
[359263252,1745877041024,-1889.3317638,0.00030176,9]
[359263254,1745877041034,-150.0,0.00030281,2]
[359263256,1745877041044,-378.75,0.00030656,2]
[359263258,1745877041057,-2226.36936766,0.000308,2]
[359263260,1745877041067,-600.0,0.00031,2]
[359263262,1745877041076,-150.0,0.00031002,2]
[359263264,1745877041086,-1889.3317638,0.00031003,9]
[359263266,1745877041095,-618.86,0.00031107,2]
[359263268,1745877041104,-284.32856184,0.00031352,2]
[359263270,1745877041114,-231.28369723,0.00031377,2]
[359263271,1745877041124,-2155.32842083,0.00031475,2]
[359263273,1745877041135,-222.74012946,0.00031475,2]
[359263275,1745877041146,-150.0,0.00031723,2]
[359263299,1745877041354,-1889.3317638,0.00031831,10]
[359263302,1745877041374,-670.16229447,0.00031911,2]
[359263304,1745877041384,-2226.36936766,0.00032225,2]
[359263306,1745877041393,-150.0,0.00032444,2]
[359263308,1745877041402,-1000.0,0.00032655,2]
[359263310,1745877041412,-1889.3317638,0.00032659,10]
[359263312,1745877041421,-239.84119403,0.00032746,2]
[359263314,1745877041431,-152.0,0.00032981,5]
[359263316,1745877041441,-36205.4548986,0.0003299,2]
[359263318,1745877041450,-650.0,0.00033,2]
[359263320,1745877041460,-4559.40908856,0.00033,2]
[359263322,1745877041469,-25137.56292168,0.00033,2]
[359263324,1745877041478,-213.0,0.00033,2]
[359263326,1745877041488,-216.70924886,0.000331,2]
[359263328,1745877041498,-200.0,0.00033151,2]
[359263330,1745877041508,-1000.0,0.00033165,2]
[359263332,1745877041517,-150.0,0.00033165,2]
[359263334,1745877041526,-618.86,0.00033371,2]
[359263336,1745877041535,-173.0,0.00033395,5]
[359263338,1745877041544,-1889.3317638,0.00033486,11]
[359263340,1745877041554,-1169.71753788,0.000335,2]
[359263342,1745877041564,-2226.36936766,0.00033651,2]
[359263343,1745877041573,-284.32856184,0.00033764,2]
[359263346,1745877041583,-670.16229447,0.00033771,2]
[359263347,1745877041592,-150.0,0.00033886,2]
[359263349,1745877041602,-4005.35780929,0.00034,2]
[359263351,1745877041611,-248.71531821,0.00034115,2]
[359263353,1745877041622,-1889.3317638,0.00034314,11]
[359263355,1745877041632,-152.0,0.00034477,6]
[359263357,1745877041642,-150.0,0.00034548,10]
[359263359,1745877041652,-150.0,0.00034607,2]
[359263361,1745877041663,-500.0,0.000347,5]
[359263363,1745877041674,-26144.11588673,0.0003489,14]
[359263366,1745877041684,-309.50313184,0.0003489,8]
[359263368,1745877041693,-167.13684362,0.000349,2]
[359263369,1745877041703,-500.0,0.00034973,5]
[359263371,1745877041713,-157.31,0.0003498,2]
[359263373,1745877041722,-36205.4548986,0.0003498,2]
[359263375,1745877041733,-36205.4548986,0.0003499,2]
[359263378,1745877041742,-151.0,0.0003499,7]
[359263379,1745877041752,-151.0,0.0003499,7]
[359263381,1745877041762,-151.0,0.0003499,7]
[359263383,1745877041772,-151.0,0.0003499,7]
[359263386,1745877041782,-266.896654,0.0003499,7]
[359263387,1745877041792,-151.0,0.0003499,7]
[359263389,1745877041801,-151.0,0.0003499,7]
[359263391,1745877041810,-151.0,0.0003499,7]
[359263393,1745877041820,-151.0,0.0003499,7]
[359263395,1745877041830,-151.0,0.0003499,7]
[359263397,1745877041839,-151.0,0.0003499,7]
[359263399,1745877041849,-151.0,0.0003499,7]
[359263401,1745877041859,-151.0,0.0003499,7]
[359263404,1745877041869,-234.276183,0.0003499,7]
[359263406,1745877041878,-151.0,0.0003499,7]
[359263407,1745877041887,-151.0,0.0003499,7]
[359263409,1745877041897,-151.0,0.0003499,7]
[359263412,1745877041906,-151.0,0.0003499,7]
[359263413,1745877041916,-259.242694,0.0003499,7]
[359263415,1745877041924,-159.408388,0.0003499,7]
[359263417,1745877041933,-151.0,0.0003499,7]
[359263419,1745877041943,-159.408388,0.0003499,7]
[359263421,1745877041952,-151.0,0.0003499,7]
[359263423,1745877041962,-611.949345,0.0003499,7]
[359263425,1745877041971,-611.949345,0.0003499,7]
[359263427,1745877041980,-151.0,0.0003499,7]
[359263429,1745877041989,-151.0,0.0003499,7]
[359263431,1745877041999,-151.0,0.0003499,7]
[359263433,1745877042009,-151.0,0.0003499,7]
[359263435,1745877042018,-108616.364696,0.0003499,2]
[359263437,1745877042027,-110034.259573,0.0003499,2]
[359263439,1745877042037,-151.0,0.0003499,7]
[359263441,1745877042047,-151.0,0.0003499,7]
[359263443,1745877042059,-151.0,0.0003499,7]
[359263445,1745877042068,-151.0,0.0003499,7]
[359263447,1745877042078,-666.348035,0.0003499,7]
[359263449,1745877042087,-666.348035,0.0003499,7]
[359263451,1745877042096,-151.0,0.0003499,7]
[359263453,1745877042106,-151.0,0.0003499,7]
[359263455,1745877042115,-312.639229,0.0003499,7]
[359263457,1745877042126,-312.639229,0.0003499,7]
[359263459,1745877042135,-157.31,0.0003499,2]
[359263461,1745877042145,-151.0,0.0003499,7]
[359263463,1745877042154,-378.924742,0.0003499,7]
[359263465,1745877042163,-280.07877,0.0003499,7]
[359263467,1745877042172,-378.924742,0.0003499,7]
[359263469,1745877042182,-280.07877,0.0003499,7]
[359263471,1745877042191,-151.0,0.0003499,7]
[359263473,1745877042200,-151.0,0.0003499,7]
[359263475,1745877042210,-151.0,0.0003499,7]
[359263477,1745877042220,-151.0,0.0003499,7]
[359263479,1745877042229,-1500.0,0.00034999,2]
[359263481,1745877042238,-1500.0,0.00034999,2]
[359263483,1745877042247,-1616.0229,0.00034999,2]
[359263485,1745877042258,-151.0,0.00034999,7]
[359263487,1745877042267,-151.0,0.00034999,7]
[359263489,1745877042277,-86478.03032761,0.00035,2]
[359263491,1745877042289,-700.0,0.00035,2]
[359263493,1745877042298,-1197.05925321,0.00035,2]
[359263495,1745877042307,-206469.58467601,0.00035,2]
[359263497,1745877042316,-227.90540975,0.00035,2]
[359263499,1745877042325,-151.0,0.00035,7]
[359263501,1745877042339,-151.0,0.00035,7]
[359263503,1745877042348,-151.0,0.00035,7]
[359263505,1745877042359,-192.50914,0.00035,7]
[359263507,1745877042368,-151.0,0.00035,7]
[359263509,1745877042377,-151.0,0.00035,7]
[359263511,1745877042387,-151.0,0.00035,7]
[359263513,1745877042396,-151.0,0.00035,7]
[359263515,1745877042405,-151.0,0.00035,7]
[359263517,1745877042415,-151.0,0.00035,7]
[359263519,1745877042424,-158.495111,0.00035,7]
[359263521,1745877042433,-151.0,0.00035,7]
[359263523,1745877042444,-151.0,0.00035,7]
[359263525,1745877042453,-151.0,0.00035,7]
[359263527,1745877042463,-151.0,0.00035,7]
[359263529,1745877042473,-151.0,0.00035,7]
[359263531,1745877042483,-151.0,0.00035,7]
[359263533,1745877042492,-151.0,0.00035,7]
[359263535,1745877042501,-173.095984,0.00035,7]
[359263538,1745877042511,-151.0,0.00035,7]
[359263540,1745877042521,-151.0,0.00035,7]
[359263542,1745877042530,-159.408388,0.00035,7]
[359263544,1745877042540,-159.408388,0.00035,7]
[359263546,1745877042550,-151.0,0.00035,7]
[359263548,1745877042559,-151.0,0.00035,7]
[359263550,1745877042569,-159.408388,0.00035,7]
[359263553,1745877042579,-159.408388,0.00035,7]
[359263555,1745877042588,-161.575496,0.00035,7]
[359263558,1745877042598,-611.949345,0.00035,7]
[359263560,1745877042607,-611.949345,0.00035,7]
[359263562,1745877042616,-611.949345,0.00035,7]
[359263565,1745877042626,-611.949345,0.00035,7]
[359263568,1745877042635,-151.0,0.00035,7]
[359263570,1745877042644,-151.0,0.00035,7]
[359263572,1745877042653,-151.0,0.00035,7]
[359263574,1745877042663,-151.0,0.00035,7]
[359263576,1745877042672,-151.0,0.00035,7]
[359263578,1745877042681,-151.0,0.00035,7]
[359263580,1745877042691,-301.315144,0.00035,7]
[359263582,1745877042700,-151.0,0.00035,7]
[359263584,1745877042709,-151.0,0.00035,7]
[359263586,1745877042718,-235.70824,0.00035,7]
[359263588,1745877042727,-666.348035,0.00035,7]
[359263590,1745877042737,-666.348035,0.00035,7]
[359263593,1745877042746,-666.348035,0.00035,7]
[359263595,1745877042755,-666.348035,0.00035,7]
[359263597,1745877042764,-151.0,0.00035,7]
[359263599,1745877042774,-151.0,0.00035,7]
[359263601,1745877042786,-312.639229,0.00035,7]
[359263603,1745877042795,-312.639229,0.00035,7]
[359263605,1745877042804,-151.0,0.00035,7]
[359263607,1745877042814,-378.924742,0.00035,7]
[359263609,1745877042826,-280.07877,0.00035,7]
[359263611,1745877042836,-378.924742,0.00035,7]
[359263613,1745877042845,-280.07877,0.00035,7]
[359263615,1745877042854,-151.0,0.00035,7]
[359263617,1745877042864,-151.0,0.00035,7]
[359263619,1745877042873,-888.0,0.00035,5]
[359263621,1745877042882,-784.75,0.00035068,2]
[359263623,1745877042892,-2226.36936766,0.00035076,2]
[359263625,1745877042901,-1889.3317638,0.00035141,12]
[359263627,1745877042910,-150.0,0.00035328,2]
[359263629,1745877042919,-309.50313183,0.00035355,9]
[359263631,1745877042929,-152.39,0.00035421,2]
[359263633,1745877042938,-257.91778498,0.00035484,2]
[359263635,1745877042947,-500.0,0.00035488,5]
[359263637,1745877042957,-500.0,0.00035488,2]
[359263639,1745877042967,-670.16229447,0.00035632,2]
[359263641,1745877042977,-618.86,0.00035635,2]
[359263643,1745877042987,-455.44,0.00035753,2]
[359263645,1745877042996,-1600.76,0.00035753,2]
[359263647,1745877043006,-455.44,0.00035753,2]
[359263649,1745877043015,-423.79,0.00035753,2]
[359263651,1745877043024,-455.44,0.00035753,2]
[359263653,1745877043034,-309.50313183,0.0003582,10]
[359263655,1745877043043,-2788.11096342,0.00035899,5]
[359263657,1745877043053,-228.142096,0.000359,7]
[359263659,1745877043067,-227.33443,0.000359,7]
[359263661,1745877043077,-151.0,0.000359,7]
[359263663,1745877043087,-176.20893454,0.000359,2]
[359263665,1745877043096,-6909.47092445,0.000359,2]
[359264424,1745877122200,200.0,0.00034995,117]
[359264426,1745877338541,166.55084825,0.00038356,30]
[359264427,1745877361819,250.0,0.00017,2]
[359264428,1745877362578,300.0,0.00019,2]
[359264429,1745877500877,166.5508483,0.00038356,30]
[359264430,1745877510060,280.405,0.0003589,43]
[359264431,1745877602941,500.0,0.00038356,120]
[359264432,1745877941248,261.76,0.00033436,120]
[359264439,1745878231863,-350.0,0.00021,2]
[359264441,1745878231873,-189.75,0.00021,2]
[359264442,1745878231978,-310.25,0.00021,2]
[359264443,1745878231987,-177.31775065,0.00023,2]
[359264444,1745878231999,-222.68224935,0.00023,2]
[359264445,1745878232008,-250.0,0.000231,2]
[359264446,1745878232018,-46.52198369,0.00025,2]
[359264447,1745878232030,-403.47801631,0.00025,2]
[359264448,1745878232041,-171.93112468,0.00027,2]
[359264449,1745878232052,-328.06887532,0.00027,2]
[359264450,1745878232062,-821.863559,0.00027397,2]
[359264451,1745878232077,-178.136441,0.00027397,2]
[359264452,1745878232087,-113.12474928,0.00029,2]
[359264453,1745878232099,-436.87525072,0.00029,2]
[359264454,1745878232109,-152.0,0.00029989,3]
[359264455,1745878232119,-166.0,0.0003,14]
[359264456,1745878232129,-490.058576,0.00030845,2]
[359264457,1745878232139,-167.29691595,0.00031,2]
[359264458,1745878232150,-250.28547636,0.00031,2]
[359264459,1745878232162,-182.41760769,0.00031,2]
[359264460,1745878232171,-540.66837682,0.00031483,3]
[359264461,1745878232183,-553.23863739,0.00031483,3]
[359264462,1745878232202,-506.09298579,0.00031483,3]
[359264463,1745878232211,-400.0,0.00031483,3]
[359264464,1745878232221,-850.0,0.00031484,2]
[359264466,1745878232231,-400.0,0.00031484,2]
[359264468,1745878232241,-152.0,0.00031485,4]
[359264470,1745878232249,-6156.12272025,0.00031485,2]
[359264472,1745878232261,-548.14212333,0.00031485,2]
[359264474,1745878232272,-4513.49515642,0.00031485,2]
[359264476,1745878232282,-7453.24532839,0.00031485,2]
[359264478,1745878232293,-12546.74467161,0.00031485,2]
[359264480,1745878232304,-510.48,0.00031519,2]
[359264482,1745878232313,-151.0,0.00031814,2]
[359264484,1745878232323,-207.4,0.00031814,2]
[359264486,1745878232332,-1689.85175007,0.000319,10]
[359264488,1745878232341,-1689.85174997,0.00032383,10]
[359264490,1745878232351,-1689.85174997,0.00032866,10]
[359264492,1745878232360,-152.0,0.00032981,5]
[359264494,1745878232369,-650.0,0.00033,2]
[359264497,1745878232379,-1000.0,0.00033165,2]
[359264500,1745878232389,-215.0738,0.00033183,2]
[359264503,1745878232398,-7020.16572905,0.00033196,2]
[359264506,1745878232422,-2145.020002,0.00033196,2]
[359264508,1745878232433,-923.40857756,0.00033196,2]
[359264694,1745878237992,-678.74353085,0.00033196,2]
[359264695,1745878238051,-6350.0,0.00033196,2]
[359264696,1745878238111,-795.48188009,0.00033196,2]
[359264858,1745878240174,-5987.18028045,0.00033196,2]
[359264859,1745878240184,-1689.85174997,0.00033348,11]
[359264860,1745878240193,-150.0,0.00033437,2]
[359264861,1745878240202,-1000.0,0.00033492,2]
[359264862,1745878240212,-216.84,0.00033724,2]
[359264863,1745878240221,-510.48,0.00033783,2]
[359264864,1745878240231,-1689.85174997,0.00033831,11]
[359264865,1745878240241,-302.0,0.0003388,3]
[359264866,1745878240250,-560.0,0.00033881,2]
[359264867,1745878240259,-8621.44,0.0003393,2]
[359264868,1745878240269,-250.0,0.0003393,7]
[359264869,1745878240278,-2027.0,0.00034021,3]
[359264870,1745878240287,-300.0,0.0003405,2]
[359264871,1745878240297,-150.0,0.0003413,2]
[359264872,1745878240307,-1689.85174997,0.00034314,11]
[359264873,1745878240316,-152.0,0.00034477,6]
[359264874,1745878240326,-223.0315306,0.00034552,2]
[359264875,1745878240336,-152.4,0.00034668,2]
[359264876,1745878240346,-2181.71,0.00034683,2]
[359264877,1745878240355,-1004.12473056,0.00034718,2]
[359264878,1745878240365,-1689.85174997,0.00034797,12]
[359264879,1745878240375,-523.16,0.00034885,2]
[359264880,1745878240386,-700.0,0.00035,2]
[359264881,1745878240396,-888.0,0.00035,5]
[359264882,1745878240407,-150.0,0.00035042,2]
[359264883,1745878240417,-1689.85174997,0.00035279,12]
[359264884,1745878240426,-2220.23,0.000353,2]
[359264885,1745878240436,-1332.14,0.000353,2]
[359264886,1745878240446,-150.0,0.00035321,2]
[359264887,1745878240455,-557.15,0.00035657,2]
[359264888,1745878240465,-365.42376709,0.00035753,14]
[359264889,1745878240475,-1689.85174997,0.00035762,12]
[359264890,1745878240484,-500.0,0.00035801,2]
[359264891,1745878240494,-4454.74992225,0.00035847,2]
[359264892,1745878240504,-9223.34105791,0.00035887,5]
[359264893,1745878240513,-9264.83869584,0.00035888,2]
[359264894,1745878240524,-2972.5156599,0.00035899,2]
[359264895,1745878240534,-304.72,0.0003591,2]
[359264896,1745878240544,-150.0,0.00035916,15]
[359264897,1745878240553,-150.0,0.00035916,15]
[359264898,1745878240563,-500.0,0.00035916,15]
[359264899,1745878240572,-500.0,0.00035916,15]
[359264900,1745878240582,-500.0,0.00035916,15]
[359264901,1745878240595,-500.0,0.00035917,2]
[359264902,1745878240604,-1983.73304525,0.00035918,15]
[359264903,1745878240614,-500.0,0.00035918,15]
[359264904,1745878240623,-500.0,0.00035918,15]
[359264905,1745878240635,-1983.73304525,0.00035918,15]
[359264906,1745878240644,-1983.73304525,0.00035918,15]
[359264907,1745878240654,-1983.73304525,0.00035918,15]
[359264908,1745878240663,-641.05492659,0.00035918,15]
[359264909,1745878240674,-1983.73304525,0.00035918,15]
[359264910,1745878240684,-584.72896059,0.00035918,15]
[359264911,1745878240694,-1983.73304525,0.00035918,15]
[359264912,1745878240704,-1983.73304525,0.00035918,15]
[359264913,1745878240714,-1983.73304525,0.00035918,15]
[359264914,1745878240723,-1983.73304525,0.00035918,15]
[359264915,1745878240734,-1983.73304525,0.00035918,15]
[359264916,1745878240744,-1983.73304525,0.00035918,15]
[359264917,1745878240754,-1983.73304525,0.00035918,15]
[359264918,1745878240765,-291.0,0.0003592,2]
[359264919,1745878240774,-150.0,0.0003592,7]
[359264920,1745878240784,-150.0,0.0003592,7]
[359264921,1745878240795,-73722.5190804,0.0003592,2]
[359264922,1745878240804,-231.28369723,0.00035921,2]
[359264923,1745878240814,-271466.82802185,0.0003593,7]
[359264924,1745878240824,-500.0,0.00035943,15]
[359264925,1745878240833,-500.0,0.00035943,15]
[359264926,1745878240845,-500.0,0.00035943,15]
[359264927,1745878240855,-500.0,0.00035944,2]
[359264928,1745878240865,-150.0,0.00035947,7]
[359264929,1745878240875,-150.0,0.00035947,7]
[359264930,1745878240885,-150.0,0.00035954,2]
[359264931,1745878240897,-500.0,0.00035971,15]
[359264932,1745878240907,-163.79625622,0.00035971,15]
[359264933,1745878240917,-500.0,0.00035971,15]
[359264934,1745878240926,-500.0,0.00035972,2]
[359264935,1745878240936,-152.0,0.00035973,7]
[359264936,1745878240946,-200.0,0.00035975,7]
[359264937,1745878240956,-200.0,0.00035975,7]
[359264938,1745878240966,-500.0,0.00035998,15]
[359264939,1745878240976,-500.0,0.00035998,15]
[359264940,1745878240986,-500.0,0.00035999,2]
[359264941,1745878240996,-500.0,0.00036,5]
[359264942,1745878241006,-500.0,0.00036,5]
[359264943,1745878241015,-500.0,0.00036,2]
[359264944,1745878241025,-500.0,0.00036026,15]
[359264945,1745878241035,-500.0,0.00036026,15]
[359264946,1745878241045,-500.0,0.00036027,2]
[359264947,1745878241056,-510.48,0.00036047,2]
[359264948,1745878241065,-500.0,0.0003605,5]
[359264949,1745878241076,-500.0,0.0003605,5]
[359264950,1745878241085,-548.82592614,0.0003605,3]
[359264951,1745878241095,-500.0,0.00036053,15]
[359264952,1745878241105,-500.0,0.00036053,15]
[359264953,1745878241115,-500.0,0.00036054,2]
[359264954,1745878241126,-500.0,0.0003608,15]
[359264955,1745878241139,-430.14461564,0.0003608,15]
[359264956,1745878241150,-500.0,0.00036081,2]
[359264957,1745878241160,-500.0,0.00036089,5]
[359264958,1745878241170,-500.0,0.00036108,15]
[359264959,1745878241180,-500.0,0.00036109,2]
[359264960,1745878241189,-500.0,0.00036135,15]
[359264961,1745878241199,-408.0,0.00036136,2]
[359264962,1745878241209,-500.0,0.00036163,15]
[359264963,1745878241219,-500.0,0.0003619,15]
[359264964,1745878241228,-500.0,0.00036217,15]
[359264965,1745878241238,-36861.2595402,0.00036226,2]
[359264966,1745878241247,-4454.7499222,0.00036236,2]
[359264967,1745878241260,-500.0,0.00036245,15]
[359264968,1745878241270,-1689.85174997,0.00036245,13]
[359264969,1745878241279,-500.0,0.00036272,15]
[359264970,1745878241289,-500.0,0.000363,15]
[359264971,1745878241300,-480.0,0.00036327,15]
[359264972,1745878241310,-783.0,0.0003646,2]
[359264973,1745878241320,-42.9143099,0.00036626,2]
[359264974,1745878241345,-1402.275,0.00036626,2]
[359264975,1745878241380,-3009.5606123,0.00036626,2]
[359264976,1745878241390,-150.0,0.00036691,2]
[359264977,1745878241400,-1689.85174997,0.00036728,13]
[359264978,1745878241410,-150.0,0.00036865,2]
[359264979,1745878241419,-1230.78,0.00036901,5]
[359264980,1745878241428,-1264.5,0.00036901,5]
[359264981,1745878241438,-771.20793025,0.00036901,5]
[359264982,1745878241448,-562.8771431,0.00036958,4]
[359264983,1745878241458,-699.55137438,0.00037,2]
[359264984,1745878241505,-50.44862562,0.00037,2]
[359264985,1745878241515,-422.06637438,0.00037015,2]
[359265054,1745878244081,-243.11719965,0.0003303,2]
[359265055,1745878244091,-29.74902025,0.00037015,2]
[359265165,1745878246180,-533.87974925,0.00035819,2]
[359265167,1745878246191,-889.92920941,0.00035819,2]
[359265169,1745878246201,-4002.93452757,0.00037015,2]